bitfinex-derivatives/quotes_BNBF0:USTF0_20230831
["timestamp","ask_amount","ask_price","bid_price","bid_amount"]
[1693509061913,0.07468218,217.26,216.91,0.18826204]
[1693509062116,0.07468218,217.26,216.92,0.18826204]
[1693509062414,0.07468218,217.26,216.93,0.18826204]
[1693509062615,0.07468218,217.26,216.91,0.18826204]
[1693509062817,0.07468218,217.26,216.92,0.18826204]
[1693509063014,0.07468218,217.26,216.91,0.18826204]
[1693509063315,0.07468218,217.26,216.92,0.18826204]
[1693509063517,0.07468218,217.26,216.93,0.18826204]
[1693509063816,0.07468218,217.26,216.94,0.18826204]
[1693509064014,0.07468218,217.26,216.91,0.18826204]
[1693509064216,0.07468218,217.26,216.92,0.18826204]
[1693509064519,0.07468218,217.26,216.93,0.18826204]
[1693509064717,0.07468218,217.26,216.94,0.18826204]
[1693509064918,0.07468218,217.26,216.91,0.18826204]
[1693509065120,0.07468218,217.26,216.9,0.07523562]
[1693509065121,0.07468218,217.26,216.92,0.18826204]
[1693509065314,0.07468218,217.26,216.91,0.18826204]
[1693509065516,0.07468218,217.26,216.92,0.18826204]
[1693509065713,0.07468218,217.26,216.93,0.18826204]
[1693509065918,0.07468218,217.26,216.9,0.07523562]
[1693509065919,0.07468218,217.26,216.94,0.18826204]
[1693509066119,0.07468218,217.26,216.91,0.18826204]
[1693509066315,0.07468218,217.26,216.92,0.18826204]
[1693509066515,0.07468218,217.26,216.91,0.18826204]
[1693509066720,0.07468218,217.26,216.92,0.18826204]
[1693509066916,0.07468218,217.26,216.91,0.18826204]
[1693509068017,0.07468218,217.26,216.92,0.18826204]
[1693509068220,0.07468218,217.26,216.93,0.18826204]
[1693509068422,0.07468218,217.26,216.9,0.18826204]
[1693509068621,0.07468218,217.26,216.91,0.18826204]
[1693509068821,0.07468218,217.26,216.9,0.18826204]
[1693509069124,0.07468218,217.26,216.91,0.18826204]
[1693509069326,0.07468218,217.26,216.92,0.18826204]
[1693509069519,0.07468218,217.26,216.9,0.18826204]
[1693509069721,0.07468218,217.26,216.91,0.18826204]
[1693509069921,0.07468218,217.26,216.9,0.18826204]
[1693509070122,0.07468218,217.26,216.91,0.18826204]
[1693509070318,0.07468218,217.26,216.92,0.18826204]
[1693509070621,0.07468218,217.26,216.93,0.18826204]
[1693509070824,0.07468218,217.26,216.9,0.18826204]
[1693509071123,0.07468218,217.26,216.91,0.18826204]
[1693509071326,0.07468218,217.26,216.9,0.18826204]
[1693509071625,0.07468218,217.27,216.91,0.18826204]
[1693509071922,0.07468218,217.26,216.92,0.18826204]
[1693509072123,0.07468218,217.26,216.89,0.07523562]
[1693509072124,0.07468218,217.26,216.93,0.18826204]
[1693509072324,0.07468218,217.26,216.9,0.18826204]
[1693509072524,0.07468218,217.26,216.91,0.18826204]
[1693509072728,0.07468218,217.26,216.92,0.18826204]
[1693509072918,0.07468218,217.26,216.93,0.18826204]
[1693509073124,0.07468218,217.26,216.94,0.18826204]
[1693509073325,0.07468218,217.26,216.91,0.18826204]
[1693509073520,0.07468218,217.26,216.92,0.18826204]
[1693509073725,0.07468218,217.26,216.93,0.18826204]
[1693509073923,0.07468218,217.26,216.91,0.18826204]
[1693509074125,0.07468218,217.26,216.92,0.18826204]
[1693509074326,0.07468218,217.26,216.93,0.18826204]
[1693509074525,0.07468218,217.26,216.91,0.18826204]
[1693509074727,0.07468218,217.26,216.92,0.18826204]
[1693509074928,0.07468218,217.25,216.91,0.26349766]
[1693509075123,0.07468218,217.25,216.92,0.18826204]
[1693509076927,0.07468218,217.24,216.92,0.26349766]
[1693509077134,0.07468218,217.24,216.93,0.18826204]
[1693509079037,0.07468218,217.23,216.93,0.18826204]
[1693509079234,0.07468218,217.22,216.93,0.18826204]
[1693509080838,0.07468218,217.21,216.93,0.26349766]
[1693509081042,0.07468218,217.21,216.94,0.18826204]
[1693509082041,0.07468218,217.21,216.94,0.26349766]
[1693509082243,0.07468218,217.21,216.95,0.18826204]
[1693509082844,0.07468218,217.2,216.95,0.26349766]
[1693509083042,0.07468218,217.2,216.96,0.18826204]
[1693509083845,0.07468218,217.18,216.96,0.26349766]
[1693509084041,0.07468218,217.18,216.97,0.18826204]
[1693509097556,0.07468218,217.18,216.97,0.26349766]
[1693509097757,0.07468218,217.18,216.98,0.18826204]
[1693509103058,0.07468218,217.18,216.97,0.18826204]
[1693509103258,0.07468218,217.17,216.96,0.07523562]
[1693509103456,0.07468218,217.17,216.97,0.18825525]
[1693509104759,0.07468218,217.18,216.97,0.18825525]
[1693509106060,0.07468218,217.17,216.97,0.18825525]
[1693509106255,0.07468218,217.18,216.97,0.18825525]
[1693509109663,0.07468218,217.18,216.97,0.26349087]
[1693509109859,0.07468218,217.18,216.98,0.18825525]
[1693509115469,0.07468218,217.19,216.98,0.26349087]
[1693509115669,0.07468218,217.19,216.99,0.18825525]
[1693509118976,0.07468218,217.19,216.98,0.07523562]
[1693509119272,0.07468218,217.19,216.99,0.18820433]
[1693509119471,0.07468218,217.19,216.97,0.07523562]
[1693509119672,0.07468218,217.19,216.98,0.18820724]
[1693509126688,0.07468218,217.18,216.98,0.18820724]
[1693509126888,0.07468218,217.18,216.97,0.18820724]
[1693509157510,0.07468218,217.17,216.97,0.18820724]
[1693509159817,0.07468218,217.17,216.97,0.26344286]
[1693509160009,0.07468218,217.17,216.97,0.07523562]
[1693509168121,0.07468218,217.16,216.97,0.07523562]
[1693509168321,0.07468218,217.15,216.95,0.07523562]
[1693509168523,0.07468218,217.15,216.96,0.18831439]
[1693509168826,0.07468218,217.16,216.96,0.18831439]
[1693509171524,0.07468218,217.17,216.95,0.07523562]
[1693509171821,0.07468218,217.17,216.96,0.18829258]
[1693509173025,0.07468218,217.17,216.94,0.07523562]
[1693509173323,0.07468218,217.17,216.95,0.18829194]
[1693509180523,2.48940631,217.3,216.87,0.07523562]
[1693509180524,0.07468218,217.1,216.87,0.07523562]
[1693509180726,0.07468218,217.1,216.88,0.18857062]
[1693509182025,0.07468218,217.12,216.88,0.18857062]
[1693509182225,0.07468218,217.12,216.89,0.18857062]
[1693509182431,0.07468218,217.12,216.85,0.07523562]
[1693509182628,0.07468218,217.12,216.86,0.18854115]
[1693509183425,0.07468218,217.13,216.86,0.18854115]
[1693509183626,0.07468218,217.13,216.87,0.18854115]
[1693509183829,0.14936437,217.15,216.68,0.50157083]
[1693509183830,0.07468218,217.12,216.88,0.18854115]
[1693509184026,0.07468218,217.13,216.82,0.07523562]
[1693509184231,0.07468218,217.13,216.83,0.18855699]
[1693509184731,0.07468218,217.14,216.84,0.18855699]
[1693509185033,0.07468218,217.14,216.85,0.18855699]
[1693509185331,0.07468218,217.13,216.86,0.18855699]
[1693509185628,0.07468218,217.14,216.87,0.18855699]
[1693509185931,0.07468218,217.14,216.88,0.18855699]
[1693509186132,0.07468218,217.14,216.81,0.18855699]
[1693509186332,0.14936437,217.17,216.82,0.18856929]
[1693509186333,0.07468218,217.15,216.82,0.18856929]
[1693509186632,0.07468218,217.15,216.83,0.18856929]
[1693509186932,0.07468218,217.15,216.84,0.18856929]
[1693509187133,0.07468218,217.15,216.85,0.18856929]
[1693509187334,0.07468218,217.15,216.79,0.07523562]
[1693509187335,0.07468218,217.15,216.8,0.18856929]
[1693509187632,0.07468218,217.16,216.81,0.18856929]
[1693509187834,0.07468218,217.16,216.79,0.18856929]
[1693509188033,0.07468218,217.16,216.8,0.18856929]
[1693509188228,0.07468218,217.16,216.79,0.18856929]
[1693509188426,0.07468218,217.16,216.8,0.18856929]
[1693509188629,0.07468218,217.16,216.81,0.18856929]
[1693509188827,0.07468218,217.16,216.79,0.18856929]
[1693509189033,0.07468218,217.16,216.8,0.18856929]
[1693509189235,0.07468218,217.16,216.78,0.18856929]
[1693509189434,0.07468218,217.17,216.79,0.18856929]
[1693509189628,0.07468218,217.17,216.78,0.18856929]
[1693509190734,0.07468218,217.17,216.77,0.18856929]
[1693509191034,0.07468218,217.17,216.76,0.07523562]
[1693509191035,0.07468218,217.17,216.78,0.18856929]
[1693509191231,0.07468218,217.17,216.77,0.18856929]
[1693509192033,0.07468218,217.18,216.77,0.18856929]
[1693509192731,0.07468218,217.17,216.77,0.18856929]
[1693509194837,0.07468218,217.17,216.78,0.18856929]
[1693509195133,0.07468218,217.17,216.79,0.18856929]
[1693509195333,0.07468218,217.17,216.76,0.18856929]
[1693509195533,0.07468218,217.18,216.77,0.18856929]
[1693509195738,0.07468218,217.18,216.76,0.18856929]
[1693509195934,0.07468218,217.18,216.77,0.18856929]
[1693509196139,0.07468218,217.18,216.76,0.18856929]
[1693509196339,0.07468218,217.18,216.77,0.18856929]
[1693509196538,0.07468218,217.18,216.76,0.18856929]
[1693509196739,0.07468218,217.18,216.77,0.18856929]
[1693509196938,0.07468218,217.18,216.76,0.18856929]
[1693509197133,0.07468218,217.17,216.78,0.18856929]
[1693509197334,0.07468218,217.12,216.79,0.18856929]
[1693509197540,0.92165765,217.11,216.71,0.18856929]
[1693509197846,0.07468218,217.1,216.72,0.18888422]
[1693509198039,0.07468218,217.1,216.73,0.18888422]
[1693509198248,0.07468218,217.1,216.67,0.18888422]
[1693509198445,0.07468218,217.1,216.68,0.18888422]
[1693509198740,0.84706331,217.09,216.64,0.18888422]
[1693509198947,0.07069933,217.1,216.65,0.18888422]
[1693509199242,0.07069933,217.1,216.66,0.18888422]
[1693509199443,0.84705017,217.09,216.65,0.18888422]
[1693509199747,0.84705017,217.09,216.66,0.18888422]
[1693509199949,0.84705017,217.09,216.64,0.18888422]
[1693509200342,0.84705017,217.09,216.62,0.07523562]
[1693509200343,0.84705017,217.1,216.63,0.18888422]
[1693509200541,0.8470799,217.09,216.64,0.18888422]
[1693509200745,0.8470799,217.11,216.62,0.18888422]
[1693509200946,0.8470799,217.1,216.62,0.18888422]
[1693509201241,0.8470799,217.11,216.62,0.18888422]
[1693509201447,0.8470799,217.1,216.62,0.18888422]
[1693509201645,0.14936437,217.13,216.53,0.15047124]
[1693509201646,0.8470799,217.12,216.6,0.26411984]
[1693509201847,0.8470799,217.11,216.61,0.18888422]
[1693509202344,0.8470799,217.1,216.61,0.18888422]
[1693509202542,0.8470799,217.1,216.36,1.00314166]
[1693509202543,0.8470799,217.11,216.6,0.18888422]
[1693509202745,0.8470799,217.1,216.61,0.18888422]
[1693509203042,0.8470799,217.1,216.58,0.07523562]
[1693509203043,0.8470799,217.09,216.62,0.18888422]
[1693509203349,0.14936437,217.09,216.59,0.18888422]
[1693509203552,0.14936437,217.09,216.63,0.18888422]
[1693509203847,0.14936437,217.02,216.42,0.07523562]
[1693509204044,0.99644427,217.01,216.43,0.18766653]
[1693509204250,0.8470799,217.01,216.44,0.07523562]
[1693509204452,0.8470799,217.0,216.44,0.07523562]
[1693509204651,0.49788126,216.99,216.45,0.18766653]
[1693509204848,0.14936437,216.97,216.45,0.18766653]
[1693509205050,0.49788126,216.94,216.33,0.18766653]
[1693509205251,0.14936437,216.93,216.33,0.18766653]
[1693509205548,0.14936437,216.87,216.46,0.18766653]
[1693509205753,0.99576252,216.93,216.34,0.18766653]
[1693509205948,0.99576252,216.91,216.27,0.07523562]
[1693509206150,0.8470799,216.92,216.35,0.18802586]
[1693509206454,0.8470799,216.9,216.35,0.18802586]
[1693509206653,0.14936437,216.96,216.35,0.18802586]
[1693509206654,0.8470799,216.91,216.35,0.18802586]
[1693509206854,0.8470799,216.89,216.18,0.07523562]
[1693509207153,0.8470799,216.94,216.22,0.07523562]
[1693509207356,0.49788126,217.04,216.23,0.18801093]
[1693509207357,0.8470799,216.88,216.23,0.18801093]
[1693509207550,0.8470799,216.93,216.24,0.07523562]
[1693509207855,0.8470799,216.87,216.25,0.18801093]
[1693509208050,0.8470799,216.92,216.25,0.18801093]
[1693509208251,0.8470799,216.86,216.22,0.18801093]
[1693509208549,0.8470799,216.91,216.26,0.18801093]
[1693509208756,0.8470799,216.85,216.23,0.18801093]
[1693509209054,0.8470799,216.9,216.27,0.18801093]
[1693509209256,0.8470799,216.84,216.24,0.18801093]
[1693509209659,0.8470799,216.89,216.28,0.18801093]
[1693509209955,0.8470799,216.88,216.25,0.18801093]
[1693509210151,0.8470799,216.88,216.29,0.18801093]
[1693509210355,0.8470799,217.02,216.29,0.18801093]
[1693509210656,0.8470799,216.87,216.26,0.18801093]
[1693509210855,0.8470799,217.01,216.26,0.18801093]
[1693509211055,0.84790323,217.0,216.3,0.18801093]
[1693509211356,0.84790323,217.0,216.27,0.18801093]
[1693509211556,0.84790323,217.12,216.31,0.18801093]
[1693509211955,0.49788126,217.17,216.28,0.18801093]
[1693509211956,0.84790323,216.99,216.28,0.18801093]
[1693509212356,0.84790323,216.99,216.11,0.15047124]
[1693509212357,0.84790323,217.13,216.32,0.18801093]
[1693509212655,0.84790323,216.98,216.33,0.18801093]
[1693509212850,0.9972676,217.12,216.16,0.18801093]
[1693509213254,0.9972676,217.11,216.16,0.18801093]
[1693509213453,0.14936437,217.08,216.16,0.18801093]
[1693509213656,0.14936437,217.08,216.15,0.18801093]
[1693509213961,0.14936437,217.02,216.15,0.18801093]
[1693509214161,0.49788126,216.98,216.17,0.18801093]
[1693509214355,0.14936437,216.92,216.16,0.18801093]
[1693509214658,0.14936437,216.95,216.16,0.18801093]
[1693509214861,0.14936437,216.95,216.18,0.18801093]
[1693509215057,0.14936437,216.89,216.18,0.18801093]
[1693509215260,0.14936437,216.92,216.18,0.18801093]
[1693509215453,0.84790323,216.97,215.95,0.18801093]
[1693509215454,0.84790323,216.94,215.95,0.18801093]
[1693509215761,0.84790323,216.91,216.19,0.18801093]
[1693509216062,0.84790323,216.93,215.96,0.18801093]
[1693509216264,0.84790323,216.9,216.2,0.18801093]
[1693509216463,0.84790323,217.01,215.97,0.18801093]
[1693509216663,0.84790323,217.01,216.21,0.18801093]
[1693509216864,0.99576252,217.02,215.98,0.18801093]
[1693509217059,0.14936437,216.92,216.22,0.18801093]
[1693509217367,0.9972676,216.91,215.99,0.18801093]
[1693509217665,0.84790323,216.91,216.23,0.18801093]
[1693509217959,0.84790323,216.9,216.0,0.18801093]
[1693509218163,0.84790323,216.9,216.24,0.18801093]
[1693509218359,0.84790323,216.96,216.01,0.18801093]
[1693509218759,0.84790323,216.99,216.25,0.18801093]
[1693509218959,0.84790323,216.99,216.02,0.18801093]
[1693509219159,0.84790323,216.95,216.02,0.18801093]
[1693509219362,0.84790323,216.95,216.26,0.18801093]
[1693509219559,0.49788126,217.16,215.8,0.15047124]
[1693509219560,0.84790323,216.98,216.03,0.18801093]
[1693509219766,0.84790323,216.94,216.27,0.18801093]
[1693509220061,0.84790323,216.97,216.04,0.18801093]
[1693509220260,0.84790323,216.93,216.28,0.18801093]
[1693509220464,0.84790323,216.96,216.28,0.18801093]
[1693509220664,0.84790323,216.96,215.92,0.07523562]
[1693509220863,0.84790323,216.92,215.92,0.07523562]
[1693509221068,0.84790323,216.95,216.29,0.18801093]
[1693509221264,0.84790323,216.91,216.29,0.18801093]
[1693509221467,0.84790323,216.94,215.94,0.07523562]
[1693509221766,0.84790323,216.9,216.3,0.18801093]
[1693509222066,0.84790323,216.93,215.95,0.18801093]
[1693509222662,0.84790323,217.18,215.95,0.18801093]
[1693509223061,0.84790323,217.18,215.87,0.07523562]
[1693509223468,0.84790323,217.18,215.86,0.07523562]
[1693509223662,0.84790323,217.18,215.48,0.23083437]
[1693509223663,0.14936437,217.15,215.82,0.07523562]
[1693509224069,0.84790323,217.18,215.87,0.07523562]
[1693509224268,0.84790323,217.18,215.86,0.07523562]
[1693509224466,0.84790323,217.18,215.87,0.07523562]
[1693509224767,0.84790323,217.18,215.88,0.07523562]
[1693509225467,0.84790323,217.18,215.89,0.07523562]
[1693509225662,0.9972676,217.18,215.88,0.07523562]
[1693509225866,0.84790323,217.18,215.88,0.07523562]
[1693509226066,0.84790323,217.18,215.89,0.07523562]
[1693509226467,0.84790323,217.18,215.9,0.07523562]
[1693509226468,0.9972676,217.18,215.9,0.07523562]
[1693509226965,0.84790323,217.18,215.96,0.07523562]
[1693509227160,0.84790323,217.18,215.97,0.07523562]
[1693509227367,0.84790323,217.18,215.93,0.07523562]
[1693509228068,0.14936437,217.17,215.94,0.18806754]
[1693509228265,0.14936437,217.16,215.94,0.18806754]
[1693509228463,0.14936437,217.1,215.92,0.18806754]
[1693509228661,0.14936437,217.1,215.95,0.18806754]
[1693509228971,0.14936437,217.08,215.95,0.18806754]
[1693509229167,0.84790323,217.07,215.87,0.18806754]
[1693509229362,0.9972676,217.07,215.96,0.18806754]
[1693509229566,0.9972676,217.07,215.87,0.07523562]
[1693509229567,0.14936437,217.06,215.97,0.18806754]
[1693509229868,0.14936437,217.05,215.88,0.18806754]
[1693509230068,0.84790323,217.04,215.98,0.18806754]
[1693509230369,0.9972676,217.04,215.99,0.18806754]
[1693509230568,0.14936437,217.02,215.99,0.18806754]
[1693509230770,0.14936437,217.02,215.87,0.07523562]
[1693509230968,0.14936437,217.02,215.64,1.00314166]
[1693509230969,0.14936437,216.97,216.0,0.18806754]
[1693509231164,0.14936437,216.97,215.88,0.18806754]
[1693509231367,0.14936437,216.95,216.01,0.18806754]
[1693509231664,0.9972676,216.94,216.02,0.18806754]
[1693509231970,0.14936437,216.9,215.83,0.18806754]
[1693509232173,0.14936437,216.84,215.83,0.18806754]
[1693509232367,0.14936437,216.82,216.03,0.18806754]
[1693509232771,0.14936437,216.82,215.84,0.18806754]
[1693509233066,0.84790323,216.81,215.84,0.18806754]
[1693509233274,0.84790323,216.81,215.79,0.07523562]
[1693509233469,0.84790323,216.81,215.71,0.18806754]
[1693509233470,0.14936437,216.89,215.85,0.18806754]
[1693509233771,0.84790323,216.9,215.8,0.26330316]
[1693509233772,0.84790323,216.8,215.8,0.26330316]
[1693509233970,0.84790323,216.88,215.81,0.07523562]
[1693509234173,0.84790323,216.88,215.86,0.26330316]
[1693509234372,0.84790323,216.94,215.87,0.07523562]
[1693509234769,0.84790323,216.87,215.88,0.18806754]
[1693509234971,0.14936437,216.91,215.88,0.18806754]
[1693509235267,0.84790323,216.86,215.83,0.18806754]
[1693509235473,0.14936437,216.8,215.89,0.18806754]
[1693509235669,0.14936437,216.8,215.68,0.15047124]
[1693509235670,0.14936437,216.81,215.84,0.18806754]
[1693509235971,0.14936437,216.81,215.51,1.00314166]
[1693509235972,0.84790323,216.85,215.9,0.18806754]
[1693509236176,0.84790323,216.8,215.85,0.18806754]
[1693509236368,0.14656062,216.81,215.91,0.18806754]
[1693509236566,0.14656062,216.78,215.91,0.18806754]
[1693509236765,0.14656062,216.77,215.75,0.26220177]
[1693509236971,0.14656062,216.72,215.75,0.18806754]
[1693509237168,0.14656062,216.7,215.92,0.18806754]
[1693509237379,0.14656062,216.71,215.92,0.18806754]
[1693509237574,0.14656062,216.7,215.76,0.18806754]
[1693509237773,0.14656062,216.69,215.93,0.18806754]
[1693509237970,0.99446385,216.69,215.93,0.18806754]
[1693509238275,0.84790323,216.73,215.77,0.18806754]
[1693509238472,0.84790323,216.73,215.79,0.07413423]
[1693509238670,0.84790323,216.68,215.79,0.07413423]
[1693509238868,0.84790323,216.68,215.94,0.18806754]
[1693509239377,1.12363144,216.82,215.95,0.18806754]
[1693509239378,0.84790323,216.67,215.95,0.18806754]
[1693509239574,0.84790323,216.67,215.63,0.98845649]
[1693509239575,0.14656062,216.76,215.88,0.07413423]
[1693509239769,0.14656062,216.74,215.89,0.18806754]
[1693509239976,0.84790323,216.66,215.89,0.18806754]
[1693509240175,0.84790323,216.7,215.89,0.18806754]
[1693509240371,0.84790323,216.7,215.86,0.07413423]
[1693509240578,0.84790323,216.65,215.87,0.07413423]
[1693509240773,0.84790323,216.65,215.83,0.18806754]
[1693509240774,0.84790323,216.65,215.88,0.26220177]
[1693509240971,0.84790323,216.64,215.88,0.26220177]
[1693509241177,0.84790323,216.64,215.89,0.18806754]
[1693509241380,0.14656062,216.73,215.89,0.18806754]
[1693509241673,0.14656062,216.67,215.83,0.18806754]
[1693509241878,0.14656062,216.67,215.8,0.07413423]
[1693509241879,0.14656062,216.69,215.9,0.18806754]
[1693509242082,0.84790323,216.68,215.9,0.18806754]
[1693509242274,0.14656062,216.66,215.84,0.18806754]
[1693509242484,0.84790323,216.69,215.84,0.18806754]
[1693509242485,0.63509603,216.68,215.84,0.18806754]
[1693509242780,0.84790323,216.67,215.91,0.18806754]
[1693509242975,0.84790323,216.67,215.85,0.18806754]
[1693509243179,0.14656062,216.68,215.92,0.18806754]
[1693509243379,0.14656062,216.63,215.86,0.18806754]
[1693509243582,0.14656062,216.63,215.93,0.18806754]
[1693509243777,0.14656062,216.59,215.87,0.18806754]
[1693509244081,0.14656062,216.6,215.94,0.18806754]
[1693509244283,0.14656062,216.6,215.88,0.18806754]
[1693509244479,0.14656062,216.54,215.88,0.18806754]
[1693509244683,0.97707082,216.6,215.88,0.18806754]
[1693509244684,0.14656062,216.5,215.88,0.18806754]
[1693509244981,0.84790323,216.49,215.95,0.18806754]
[1693509245186,0.84790323,216.49,215.42,0.64249671]
[1693509245481,0.99446385,216.49,215.43,0.18985221]
[1693509246176,0.84790323,216.48,215.44,0.18985221]
[1693509246373,0.84790323,216.48,215.43,0.18985221]
[1693509246981,0.84790323,216.51,215.46,0.07413423]
[1693509247181,0.84790323,216.47,215.47,0.18985221]
[1693509247380,0.84790323,216.51,215.47,0.18985221]
[1693509247575,0.84790323,216.46,215.47,0.18985221]
[1693509247776,0.84790323,216.51,215.47,0.18985221]
[1693509247980,0.84790323,216.45,215.47,0.18985221]
[1693509248182,0.84790323,216.5,215.47,0.18985221]
[1693509248382,0.84790323,216.44,215.47,0.18985221]
[1693509248683,0.84790323,216.43,215.47,0.18985221]
[1693509248983,0.84790323,216.51,215.47,0.18985221]
[1693509249183,0.84790323,216.42,215.47,0.18985221]
[1693509249484,0.84790323,216.41,215.47,0.18985221]
[1693509249684,0.84790323,216.51,215.47,0.18985221]
[1693509249877,0.84790323,216.4,215.47,0.18985221]
[1693509250078,0.84790323,216.5,215.47,0.18985221]
[1693509250282,0.84790323,216.39,215.47,0.18985221]
[1693509250584,0.84790323,216.49,215.47,0.18985221]
[1693509250783,0.84790323,216.51,215.47,0.18985221]
[1693509252189,0.84790323,216.51,215.01,0.98845649]
[1693509252190,0.84790323,216.51,215.41,0.18985221]
[1693509252386,0.84790323,216.5,215.48,0.18985221]
[1693509252586,0.84790323,216.54,215.48,0.18985221]
[1693509252883,0.84790323,216.54,215.42,0.18985221]
[1693509253285,0.84790323,216.7,215.49,0.18985221]
[1693509253586,0.84790323,216.69,215.49,0.18985221]
[1693509253784,0.84790323,216.69,215.5,0.18985221]
[1693509254179,0.84790323,216.72,215.5,0.18985221]
[1693509254384,0.84790323,216.72,215.4,0.07413423]
[1693509254585,0.84790323,216.72,215.41,0.18985221]
[1693509254790,0.84790323,216.68,215.41,0.26398644]
[1693509255284,0.84790323,216.71,215.41,0.18985221]
[1693509255489,0.84790323,216.71,215.42,0.18985221]
[1693509255685,0.84790323,216.67,215.39,0.26398644]
[1693509255882,0.84790323,216.67,215.43,0.18985221]
[1693509256284,0.14656062,216.76,215.43,0.18985221]
[1693509256285,0.99446385,216.7,215.43,0.18985221]
[1693509256482,0.99446385,216.7,215.12,0.98845649]
[1693509256483,0.14656062,216.69,215.44,0.18985221]
[1693509256788,0.84790323,216.66,215.44,0.18985221]
[1693509256991,0.84790323,216.66,215.34,0.18985221]
[1693509257189,0.84790323,216.68,215.35,0.18985221]
[1693509257392,0.99446385,216.68,215.35,0.26398644]
[1693509257582,0.84790323,216.67,215.35,0.07413423]
[1693509257787,0.84790323,216.68,215.37,0.07413423]
[1693509257990,0.84790323,216.66,215.38,0.26398644]
[1693509258185,0.97707082,216.77,215.43,0.07413423]
[1693509258186,0.84790323,216.65,215.43,0.07413423]
[1693509258392,0.84790323,216.74,215.44,0.07413423]
[1693509258690,0.84790323,216.73,215.46,0.07413423]
[1693509258893,0.84790323,216.73,215.4,0.33812068]
[1693509258894,0.84790323,216.73,215.47,0.07413423]
[1693509259094,0.84790323,216.74,215.47,0.26398644]
[1693509259291,0.84790323,216.72,215.48,0.07413423]
[1693509259488,0.84790323,216.72,215.54,0.07413423]
[1693509259689,0.84790323,216.73,215.6,0.07413423]
[1693509259896,0.84790323,216.73,215.46,0.49422824]
[1693509259897,0.84790323,216.73,215.61,0.07413423]
[1693509260096,0.14656062,216.9,215.55,0.18985221]
[1693509260097,0.84790323,216.71,215.62,0.07413423]
[1693509260291,0.84790323,216.72,215.62,0.07413423]
[1693509260493,0.84790323,216.72,215.65,0.07413423]
[1693509260798,0.14656062,216.87,215.65,0.07413423]
[1693509260999,0.84790323,216.71,215.66,0.26398644]
[1693509261296,0.84790323,216.86,215.67,0.07413423]
[1693509261503,0.84790323,216.86,215.72,0.07413423]
[1693509261695,0.99446385,216.9,215.76,0.07413423]
[1693509262092,0.84790323,216.85,215.77,0.18985221]
[1693509262299,2.44267705,217.01,215.77,0.18985221]
[1693509262300,0.14656062,216.86,215.77,0.18985221]
[1693509262698,0.84790323,216.84,215.74,0.18985221]
[1693509262898,0.84790323,216.83,215.74,0.18985221]
[1693509263101,0.99446385,216.84,215.78,0.18985221]
[1693509263298,0.99446385,216.84,215.75,0.18985221]
[1693509263500,0.84790323,216.82,215.79,0.07413423]
[1693509263701,0.84790323,216.81,215.8,0.07413423]
[1693509263904,0.14656062,216.84,215.79,0.18985221]
[1693509264104,0.14656062,216.83,215.76,0.26398644]
[1693509264295,0.99446385,216.83,215.76,0.26398644]
[1693509264602,0.14656062,216.81,215.8,0.26398644]
[1693509264899,0.84790323,216.82,215.87,0.07413423]
[1693509265205,0.84790323,216.8,215.91,0.07413423]
[1693509265403,0.84790323,216.81,215.92,0.18985221]
[1693509265602,0.84790323,216.79,215.93,0.07413423]
[1693509265802,0.84790323,216.79,215.89,0.26398644]
[1693509266005,0.84790323,216.8,215.89,0.26398644]
[1693509266299,0.84790323,216.8,215.75,0.49422824]
[1693509266300,0.84790323,216.78,215.9,0.18985221]
[1693509266497,0.84790323,216.79,215.89,0.26398644]
[1693509266701,0.84790323,216.77,215.9,0.18985221]
[1693509267003,0.84790323,216.76,215.9,0.18985221]
[1693509267303,0.84790323,216.89,215.9,0.26398644]
[1693509267601,0.84790323,216.89,215.91,0.18985221]
[1693509267902,0.84790323,216.88,215.9,0.18985221]
[1693509268097,0.84790323,216.88,215.91,0.18985221]
[1693509268302,0.14656062,216.88,215.85,0.18985221]
[1693509268604,0.84790323,216.87,215.86,0.18985221]
[1693509268801,0.84790323,216.87,215.61,0.98845649]
[1693509268802,0.99446385,216.87,215.85,0.18985221]
[1693509268999,0.99446385,216.87,215.6,0.98845649]
[1693509269000,0.84790323,216.86,215.87,0.07413423]
[1693509269204,0.84790323,216.91,215.88,0.26398644]
[1693509269398,0.84790323,216.91,215.89,0.26398644]
[1693509269600,0.99446385,216.92,215.91,0.07413423]
[1693509269807,0.84790323,216.91,215.92,0.07413423]
[1693509270305,0.84790323,216.9,215.93,0.18985221]
[1693509270603,0.84790323,216.96,215.92,0.18985221]
[1693509270806,0.99446385,216.96,215.93,0.18985221]
[1693509271000,0.84790323,216.95,215.9,0.26398644]
[1693509271201,0.84790323,216.96,215.91,0.26398644]
[1693509271405,0.84790323,216.95,215.95,0.07413423]
[1693509271608,0.84790323,216.95,215.92,0.18985221]
[1693509271609,0.84790323,216.95,215.97,0.07413423]
[1693509271805,0.14656062,217.04,215.97,0.07413423]
[1693509271806,0.84790323,217.01,215.97,0.07413423]
[1693509272007,0.84790323,216.94,215.98,0.18985221]
[1693509272304,0.84790323,217.0,215.98,0.18985221]
[1693509272701,0.84790323,216.99,215.98,0.18985221]
[1693509272907,0.84790323,216.99,215.96,0.07413423]
[1693509273116,0.84790323,217.13,215.97,0.07413423]
[1693509273411,0.84790323,217.13,215.98,0.26398644]
[1693509273611,0.84790323,217.13,215.99,0.26398644]